Cogmind - Beta 16 @@@ ROGUE MODE // 2025.11.06 @ 04:11:07 Player: souux Result: Destroyed by S-10 Pest with Light Assault Rifle Performance ------------- Evolutions (0) 0 Regions Visited (2) 400 Robots Destroyed (44) 220 Value Destroyed (1024) 1024 Prototype IDs (16) 320 Alien Tech Used (0) 0 Bonus (0) 0 TOTAL SCORE: 1964 Bonus ------- None Cogmind --------- Core Integrity 0/250 Matter 290/300 Energy 206/250 System Corruption 0% Temperature Cool (6) Movement Treading (160) Location -10/Subcaves Parts ------- > --- POWER (1) -------- Ion Engine > --- PROPULSION (2) --- Light Treads Spiked Treads > --- UTILITY (2) ------ Large Storage Unit Makeshift Light Armor Plating > --- WEAPON (2) ------- Spread Laser Subdweller Laser > --- INVENTORY (15) --- Subdweller Power Source Spiked Treads Subdweller Monowheel Heat Sink High-capacity Matter Pod (200) Structural Scanner Seismic Detector Scrap Shield Hacking Suite Battle Rifle Subdweller Machine Gun Barrage Gun Mini Grenade Launcher Maul Peak State ------------ > --- POWER ------------ Ion Engine > --- PROPULSION ------- Light Treads Spiked Treads > --- UTILITY ---------- Large Storage Unit Makeshift Light Armor Plating > --- WEAPON ----------- Spread Laser Subdweller Laser > --- INVENTORY -------- Subdweller Power Source Spiked Treads Subdweller Monowheel Heat Sink High-capacity Matter Pod Structural Scanner Seismic Detector Scrap Shield Hacking Suite Battle Rifle Subdweller Machine Gun Barrage Gun Mini Grenade Launcher Maul [Rating: 15] Favorites ----------- Power Ion Engine Engine Ion Engine Propulsion Light Treads Treads Light Treads Wheel Wheel Utility Large Storage Unit Device Structural Scanner Storage Large Storage Unit Hackware Hacking Suite Protection Light Armor Plating Weapon Spread Laser Energy Gun Spread Laser Build | -11 -10 -10 ------- Run | Yrd Mat Sub Slots Evolved . | . . . Power . | . . . Propulsion . | . . . Utility . | . . . Weapon . | . . . Parts Attached 28 | 7 9 12 Power 4 | 1 1 2 Engine 4 | 1 1 2 Core . | . . . Reactor . | . . . Propulsion 8 | 2 2 4 Treads 4 | . 2 2 Leg . | . . . Wheel 4 | 2 . 2 Hover . | . . . Flight . | . . . Utility 8 | 2 3 3 Device 2 | 1 . 1 Storage 2 | 1 1 . Processor . | . . . Hackware 1 | . 1 . Protection 3 | . 1 2 Artifact . | . . . Weapon 8 | 2 3 3 Energy Gun 8 | 2 3 3 Energy Cannon . | . . . Ballistic Gun . | . . . Ballistic Cannon . | . . . Launcher . | . . . Special Weapon . | . . . Impact Weapon . | . . . Slashing Weapon . | . . . Piercing Weapon . | . . . Special Melee Weapon . | . . . Unidentified Prototypes . | . . . Parts Lost 8 | . 4 4 Power 1 | . . 1 Propulsion 1 | . 1 . Utility 3 | . 1 2 Weapon 3 | . 2 1 Highest Loss Streak 3 | . 2 3 To Critical Strikes . | . . . Average Backups 13 | 4 10 14 Power . | . 1 . Propulsion 2 | 3 1 2 Utility 4 | . 4 5 Weapon 5 | . 3 6 Tool/Special . | . . . Unused Backups 24 | . 8 16 Power 1 | . . 1 Propulsion 4 | . 2 2 Utility 7 | . 2 5 Weapon 12 | . 4 8 Tool/Special . | . . . Average Slot Usage (%) 99 | . 99 99 Engine 13 | . 13 14 Treads 25 | . 24 26 Wheel 2 | . 2 1 Device 3 | . 1 3 Storage 14 | . 14 14 Hackware 4 | . 12 . Protection 6 | . . 9 Energy Gun 27 | . 27 28 Peak Build Rating 15 | 8 13 15 Average Rating 11 | 5 10 11 On Entrance 6 | . 8 11 Avg Prop Armor Cover (%) 11 | . . 11 Naked Turns . | . . . Heaviest Build 35 | 13 32 35 Greatest Support 40 | 20 40 40 Greatest Overweight (x) 1 | . 1 1 Average Overweight (x) . | . . . Largest Inventory Capacity 15 | 8 15 15 Average Capacity 14 | 6 14 15 Most Carried 15 | 8 15 15 Average Carried 13 | 4 10 14 Final Capacity 15 | 8 15 15 Final Carried 15 | 8 14 15 Class Distribution -------------------- 100% | Mutant Dominant Class ---------------- Mutant | -10/Materials Mutant | -10/Subcaves Resources | -11 -10 -10 ----------- Run | Yrd Mat Sub Matter Collected 701 | 270 301 130 Remotely . | . . . Salvage Created 1317 | 129 748 440 Parts 82 | 15 40 27 Haulers Intercepted 2 | . 2 . Recyclers Shooed 1 | 1 . . Parts Field Recycled . | . . . Retrieved Matter . | . . . Parts Self-Destructed 15 | . . 15 Prevented . | . . . Parts Restored . | . . . Kills | -11 -10 -10 ------- Run | Yrd Mat Sub Combat Hostiles Destroyed 29 | . 14 15 Guns 27 | . 12 15 AOE 2 | . 2 . Classes Destroyed 10 | 2 6 2 Worker 1 | . 1 . Tunneler 3 | 3 . . Hauler 2 | . 2 . Recycler 2 | 1 1 . Operator 2 | . 2 . Turret 2 | . . 2 Watcher 3 | . 3 . Swarmer 10 | . 6 4 Grunt 10 | . 8 2 Subdweller 9 | . . 9 Best Kill Streak 6 | 3 3 6 Combat Bots Only 4 | . 3 4 Max Kills in Single Turn 2 | 2 2 1 Gunslinging 1 | . 1 . Exploded 2 | . 2 . Melee . | . . . Uniques/NPCs Destroyed . | . . . Combat | -11 -10 -10 -------- Run | Yrd Mat Sub Hostile Shots Fired 148 | . 29 119 Missed 48 | . 5 43 Hits 100 | . 24 76 Projectile 100 | . 24 76 Critical Strikes 2 | . . 2 Damage Taken 1324 | . 305 1019 Core 256 | . 25 231 Absorbed by Shields . | . . . Core Remaining (%) 100 | 100 . . Volleys Fired 100 | 6 47 47 Largest 2 | 2 2 2 Hottest 130 | 80 115 130 Shots Fired 192 | 12 89 91 Gun 192 | 12 89 91 Cannon . | . . . Launcher . | . . . Special . | . . . Kinetic . | . . . Thermal 132 | . 41 91 Explosive . | . . . Electromagnetic 60 | 12 48 . Robot Hit Streak 24 | 2 13 24 Robot Miss Streak 6 | 2 3 6 Penetration Max . | . . . Secondary Targets 3 | . 1 2 Max Gunslinging Chain 1 | . 1 1 Shots Hit Robots 131 | 6 55 70 Core Hits 114 | 4 35 75 Critical Kills . | . . . Critical Parts Destroyed . | . . . Critical Strikes 4 | . 4 . Burn 3 | . 3 . Corrupt 1 | . 1 . Melee Attacks . | . . . Impact . | . . . Slashing . | . . . Piercing . | . . . Sneak Attacks . | . . . Combat Hostiles . | . . . Follow-up Attacks . | . . . Damage Inflicted 2265 | 104 976 1185 Guns 2085 | 104 796 1185 Cannons . | . . . Explosions 174 | . 174 . Melee . | . . . Ramming 6 | . 6 . Kinetic . | . . . Thermal 1680 | . 495 1185 Explosive . | . . . Electromagnetic 579 | 104 475 . Impact . | . . . Slashing . | . . . Piercing . | . . . Highest Corruption . | . . . Average Corruption . | . . . Corruption Purged . | . . . Corruption Blocked . | . . . Overload Shots . | . . . Overflow Damage 43 | . 43 . Projectiles . | . . . Explosions 43 | . 43 . Melee . | . . . Knockbacks . | . . . Impact . | . . . Kinetic . | . . . Secondary . | . . . Self-Inflicted Damage 52 | . 52 . Shots 1 | . 1 . Rammed 3 | . 3 . Targets Rammed 3 | . 3 . Kicked . | . . . Crushed . | . . . Highest Temperature 132 | 54 132 123 Average Temperature 39 | 23 40 40 Received Heat Transfer 360 | . 117 243 Siege Activations . | . . . Martial Activations . | . . . Shielding Activations . | . . . Robots Disrupted . | . . . Combat Hostiles . | . . . Robots Corrupted . | . . . Combat Hostiles . | . . . Parts Fried . | . . . Impact Corruptions . | . . . Robots Melted . | . . . Combat Hostiles . | . . . Parts Melted 2 | . 1 1 Heat Transferred 2622 | . 1142 1480 Parts Sabotaged . | . . . Parts Stolen . | . . . Parts Stripped . | . . . Power Chain Reactions 2 | . 2 . Alert | -11 -10 -10 ------- Run | Yrd Mat Sub Maximum Alert Level . | . . . Low Security (%) 100 | 100 100 . Level 1 . | . . . Level 2 . | . . . Level 3 . | . . . Level 4 . | . . . Level 5 . | . . . High Security . | . . . Max Security . | . . . Peak Influence 143 | 15 143 . Initial 3 | . 3 . Average 36 | 2 38 . Influence Increases 689 | 20 454 215 Destroy 0b10 Robot/C 440 | . 280 160 Destroy 0b10 Robot/NC 65 | 20 45 . Destroy Leader 80 | . 70 10 Successful Hack 21 | . 21 . Disable Machine 30 | . 30 . Destroy Structure 8 | . 8 . Lose Combat Pursuer 45 | . . 45 Influence Decreases 689 | 15 459 215 Entered New Map 2 | . 2 . Time Decay 589 | 15 389 185 Lost Part 60 | . 30 30 Purge Threat 38 | . 38 . Squads Dispatched 3 | . 3 . Investigation 1 | . 1 . Extermination . | . . . Reinforcement 2 | . 2 . Assault . | . . . Garrison . | . . . Intercept . | . . . Searches Triggered . | . . . Construction Impeded . | . . . Haulers Reinforced . | . . . Active Scanning Responses . | . . . Cargo Convoy Interrupts . | . . . Stealth | -11 -10 -10 --------- Run | Yrd Mat Sub Distress Signals 2 | . 2 . Communications Jammed . | . . . Distress Signals . | . . . Times Spotted 49 | . 28 21 Peak Tracking Total 6 | . 3 6 Tactical Retreats 2 | . . 2 Traps | -11 -10 -10 ------- Run | Yrd Mat Sub Traps Triggered 5 | . 3 2 Indirectly . | . . . Trap Hack Attempts . | . . . Triggered . | . . . Disarmed 4 | . 4 . Reprogrammed . | . . . Reused . | . . . Traps Extracted . | . . . Installed . | . . . Triggered . | . . . Machines | -11 -10 -10 ---------- Run | Yrd Mat Sub Machines Disabled 4 | . 3 1 Max in Single Turn 1 | . 1 1 Machines Repaired . | . . . Machines Dismantled . | . . . Machines Sabotaged . | . . . Overloaded Fab Kills . | . . . Hacking | -11 -10 -10 --------- Run | Yrd Mat Sub Machines Accessed 8 | . 6 2 Terminals 6 | . 6 . Fabricators . | . . . Repair Stations . | . . . Recycling Units . | . . . Scanalyzers . | . . . Garrison Access . | . . . Total Hacks 23 | . 18 5 Successful 19 | . 14 5 Failed 4 | . 4 . Catastrophic . | . . . Database Lockouts . | . . . Manual 15 | . 15 . Terminals 18 | . 18 . Fabricators . | . . . Repair Stations . | . . . Recycling Units . | . . . Scanalyzers . | . . . Garrison Access . | . . . Terminal Hacks 10 | . 5 5 Record 4 | . . 4 Prototype ID Bank 2 | . 2 . Unreport Threat 2 | . 2 . Disarm Traps 1 | . 1 . Proto ID Catalog 1 | . . 1 Fabricator Hacks . | . . . Repair Station Hacks . | . . . Recycling Unit Hacks . | . . . Scanalyzer . | . . . Garrison Access Hacks . | . . . Unauthorized Hacks 9 | . 9 . Terminals 9 | . 9 . Botnet 4 | . 4 . Skim 5 | . 5 . Fabricators . | . . . Repair Stations . | . . . Recycling Units . | . . . Scanalyzers . | . . . Garrison Access . | . . . Data Cores Recovered . | . . . Used . | . . . Hacking Detections 5 | . 5 . Full Trace Events . | . . . Feedback Events . | . . . Feedback Blocked . | . . . Robot Schematics Acquired . | . . . Robots Built . | . . . Authchips . | . . . Time . | . . . Total Robot Build Rating . | . . . Part Schematics Acquired . | . . . Parts Built . | . . . Authchips . | . . . Time . | . . . Total Part Build Rating . | . . . Part Studies Acquired . | . . . Parts Repaired . | . . . Time . | . . . Parts Recycled . | . . . Recycled Matter . | . . . Retrieved Matter . | . . . Retrieved Components . | . . . Parts Scanalyzed . | . . . Part Schematics Acquired . | . . . Parts Damaged . | . . . Bothacking | -11 -10 -10 ------------ Run | Yrd Mat Sub Used RIF Installer . | . . . Robots Hacked . | . . . Non-combat . | . . . Combat . | . . . Robot Hacks Applied . | . . . Relay Couplers Released . | . . . Fabnet Peak Effective % . | . . . Robots Rewired . | . . . Allies Hacked . | . . . Hacks Repelled . | . . . Allies | -11 -10 -10 -------- Run | Yrd Mat Sub Total Allies . | . . . Largest Group . | . . . Highest-Rated Group . | . . . Highest-Rated Ally . | . . . Total Orders . | . . . Ally Attacks . | . . . Total Damage . | . . . Kills . | . . . Allies Corrupted . | . . . Allies Melted . | . . . Intel | -11 -10 -10 ------- Run | Yrd Mat Sub Active Infowar (turns) 922 | 34 139 749 Structural 749 | . . 749 Seismic 173 | 34 139 . Robot Analysis Total . | . . . Derelict Logs Recovered . | . . . Drone Launches . | . . . Drone Recoveries . | . . . Exploration | -11 -10 -10 ------------- Run | Yrd Mat Sub Turns Passed 4184 | 80 1434 2670 Spaces Moved 2263 | 55 783 1425 Core 1 | 1 . . Treads 1965 | . 682 1283 Legs . | . . . Wheels 297 | 54 101 142 Hover . | . . . Flight . | . . . Fastest Speed 50 | 50 80 110 Average Speed 151 | 79 150 155 Slowest Speed 240 | 80 240 160 Overloaded Moves . | . . . Propulsion Burnouts . | . . . Robots Hopped . | . . . Potential Cave-ins . | . . . Cave-ins Triggered . | . . . Exploration Rate (%) 63 | 5 100 84 Regions Visited 2 Branch Regions 1 Pre-discovered Areas 1 | . 1 . Known Exits Taken 1 | . 1 . Unknown Exits Taken 1 | 1 . . Scrap Searched 2 | . . 2 Spaces Dug . | . . . Terrain Destroyed 6 | . 6 . Melee . | . . . Projectile . | . . . AOE 6 | . 6 . Terrain Rammed . | . . . Walls Destroyed . | . . . Machines Disabled . | . . . Actions | -11 -10 -10 --------- Run | Yrd Mat Sub Total 2815 | 76 954 1785 Wait 352 | . 75 277 Move 2261 | 54 782 1425 Hop . | . . . Pick Up 42 | 9 22 11 Fast Attach 11 | 6 4 1 Attach 9 | 1 4 4 Detach 1 | . . 1 Swap 14 | . 5 9 Drop 22 | . 12 10 Fire 100 | 6 47 47 Melee . | . . . Ram . | . . . Kick . | . . . Crush 3 | . 3 . Escape Stasis . | . . . Rewire . | . . . Trap . | . . . Miscellaneous . | . . . Route ------- -11/Scrapyard -10/Materials (discovered 6 exits: *Mat x3 / [*Min x2] / *Sub) -10/Subcaves (discovered 3 exits: *Mat x2 / [*Rec]) History --------- Turn | Location | Event 12 | -11/Scrapyard | Discovered new exit (range 15) 81 | -11/Scrapyard | Entered Materials 142 | -10/Materials | Discovered new exit (range 15) 312 | -10/Materials | Build established: Mutant 360 | -10/Materials | Discovered new exit (range 14) 524 | -10/Materials | Discovered new exit (range 12) 950 | -10/Materials | Identified exit to Materials 991 | -10/Materials | Learned Storage stockpile data 1022 | -10/Materials | Learned location of Mines (-8) 1044 | -10/Materials | Learned Storage emergency access door positions 1056 | -10/Materials | Identified exit to Subcaves 1056 | -10/Materials | Learned location of 1 exit from Materials 1515 | -10/Materials | Entered Subcaves 1516 | -10/Subcaves | Identified exit to Materials 2041 | -10/Subcaves | Discovered new exit (range 10) 2075 | -10/Subcaves | Core integrity fell below 50% 2107 | -10/Subcaves | Lost 3 parts (1p1u1w) 2597 | -10/Subcaves | Shifting Twisted Machinery released Battle Cannon 2617 | -10/Subcaves | Shifting Twisted Machinery released Piercing Trap 2742 | -10/Subcaves | Core integrity fell below 20% 2859 | -10/Subcaves | Shifting Twisted Machinery released Spk. Treads 2869 | -10/Subcaves | Shifting Twisted Machinery released Slug Cannon 3033 | -10/Subcaves | Visited Clippyterm 3038 | -10/Subcaves | Learned Factory emergency access door positions 3196 | -10/Subcaves | Shifting Twisted Machinery released Barrage Gun 3341 | -10/Subcaves | A swath of the cavern ceiling suddenly collapsed 3792 | -10/Subcaves | Visited 4L-MR0's lab 4185 | -10/Subcaves | Destroyed by S-10 Pest with Light Assault Rifle Last Messages --------------- them a little longer before you take them away? 03797_ 4L-MR0 mumbles to no one in particular: "Damn Subs sneaking around stealing my stuff." 03799_ Connecting with 4L-MR0's Prototype Logs... >>Proto ID Catalog Downloading prototype IDs... Meta Core Arachnoskeleton Cargo Legs Tripod Weapons Platform Hoverbase Flightbrick Gun Armor Tower Shield Power Bank Rainbow Chip VL-GR5's Exoskeleton "Deathgrip" Powered Cannon Map ----- +----------------------------------------------------+ | | | | | | | | | | | | | | | ?????????????????????????????????????????????????? | | ?????????????????????????????????????????????????? | | ?????????????????????????????????????????????????? | | ?????????????????????????????????????????????????? | | ?????????????????????????????????????????????????? | | ?????????????????????????????????????????????????? | | ?????????????????????????????????????????????????? | | ?????????????????????????????????????????????????? | | ?????????????????????????????????????????????????? | | ?????????????????????????????????????????????????? | | ?????????????????????????????????????????????????? | | ?????????????????????????????????????????????????? | | ?????????????????????????????????????????????????? | | ########?????????????????#########???????????????? | | ###########??????????????##########??????????????? | | # # #####???????#########" ^##########???????? | | ##################"" ^# ### #####???? | | ###########"#;####s## # ##### | | ### #""# ""##""#;;;@s#"[ # # ## "" | | ###### ##"##"#"##;;### ; ########## ] | | ######## ######"###"#####^%[## ###???# ####&= | | ###??###########"########^ ^ """##??# ###?##%! | | ###???######??############^ ^ """""#??####### & | | #####?????????#####????###^ ### #####?# | | #####??????????????????######### ## ### | | #######?????????????## ##### # | | ## ##?????????????# #?# | | ##?????????????# ### | | ### ##?????????????# | | #### #####?????????????# ### # | | ###########?????????????# ## # ## | | ########????????????????##" ###?## ##? | | ###?????????????????????##"##????## #?? | | ##?????????????????????#%"#??????## | | ##?????????????????????#="|???????#%= | | ##?????????????????????## ?????# ## | | ##??????????????????????# ??? #? | | ##??????????????????????## ??# ? # | | ###?????????????????????#??# ## # | | ##????????????????????????#"% ### # | | ## ##???????????????????????? = #?# %% # | | #######???????????????????????## ??? | | #######????????????????????????### ??? | +----------------------------------------------------+ Best States ------------- Heat Dissipation 25 Energy Generation 15 Energy Capacity 250 Matter Stores 300 Matter Capacity 300 Sight Range 16 Terrain Scan Density 10 Armor Coverage 150 Evasion (%) 44 Recoil Reduction 2 Offensive Hacking 10 Item Schematics ----------------- None Robot Schematics ------------------ None Fabricated ------------ Nothing Repaired ---------- Nothing Studied --------- None Alien Tech Used ----------------- None Achievements -------------- None Challenges ------------ None Game ------ Seed HardlightWardroneSword Manual? 0 Play Time 00:24:24 Cumulative 76.8 hours Start 2025.11.06 @ 03:46:17 End 2025.11.06 @ 04:11:07 Sessions 1 Manual Loads 0 Difficulty Rogue Special Mode None Game No. 68 Rogue 68 Adventurer 0 Explorer 0 Win Type - Total 0 Types 0/0/0/0/0/0/0/0/0/0 Lore% 27 Gallery% 40 Achievement% 29 Wizard Run 0 Options --------- Layout 2 ASCII 0 Keyboard 0 Movement Mouse Keybinds 0 Fullscreen 2 Font 24/Terminus Map View 50x44 Zoom Use 0% Tactical HUD 1 Map Filters NONE Filters NONE Steam 1 RUN: a9297dc2-e3ea-430f-9658-944ae6c8829e